Cogmind - Beta 14 @@@ ROGUE MODE // 2024.12.06 @ 22:26:54 Player: droogie Result: Destroyed by Y-45 Defender with Heavy Assault Rifle Performance ------------- Evolutions (2) 1000 Regions Visited (3) 600 Robots Destroyed (18) 90 Value Destroyed (631) 631 Prototype IDs (1) 20 Alien Tech Used (0) 0 Bonus (0) 0 TOTAL SCORE: 2341 Bonus ------- None Cogmind --------- Core Integrity 0/550 Matter 280/300 Energy 100/100 System Corruption 1% Temperature Cool (18) Movement Core (200) Ox3 Location -8/Materials Parts ------- > --- POWER (2) -------- (None) > --- PROPULSION (4) --- (None) > --- UTILITY (2) ------ Medium Storage Unit Advanced Targeting Computer > --- WEAPON (3) ------- (None) > --- INVENTORY (10) --- Heat Sink Peak State ------------ > --- POWER ------------ Light Nuclear Core Light Angular Momentum Engine > --- PROPULSION ------- Aluminum Leg Aluminum Leg > --- UTILITY ---------- Medium Storage Unit Advanced Targeting Computer > --- WEAPON ----------- Small Laser Small Laser Heavy Laser > --- INVENTORY -------- Ion Engine Heat Sink Advanced EMP Blaster Advanced EMP Blaster Advanced EMP Blaster [Rating: 21] Favorites ----------- Power Light Ion Engine Engine Light Ion Engine Power Core Light Nuclear Core Propulsion Light Treads Treads Light Treads Leg Aluminum Leg Utility Small Storage Unit Device Heat Sink Storage Small Storage Unit Processor Advanced Targeting Computer Weapon Small Laser Energy Gun Small Laser Ballistic Gun Autogun Ballistic Cannon Improved Light Cannon Launcher Advanced EMP Blaster Build | -11 -10 -9 -8 ------- Run | Yrd Mat Mat Mat Slots Evolved 4 | . . 2 2 Power 1 | . . . 1 Propulsion 2 | . . 2 . Utility . | . . . . Weapon 1 | . . . 1 Parts Attached 44 | 6 . 13 25 Power 11 | 1 . 3 7 Engine 10 | 1 . 3 6 Core 1 | . . . 1 Reactor . | . . . . Propulsion 9 | 2 . 4 3 Treads 4 | . . 4 . Leg 5 | 2 . . 3 Wheel . | . . . . Hover . | . . . . Flight . | . . . . Utility 5 | 1 . 2 2 Device 2 | . . 2 . Storage 2 | 1 . . 1 Processor 1 | . . . 1 Hackware . | . . . . Protection . | . . . . Artifact . | . . . . Weapon 19 | 2 . 4 13 Energy Gun 11 | 1 . 2 8 Energy Cannon . | . . . . Ballistic Gun 3 | 1 . 1 1 Ballistic Cannon 1 | . . 1 . Launcher 4 | . . . 4 Special Weapon . | . . . . Impact Weapon . | . . . . Slashing Weapon . | . . . . Piercing Weapon . | . . . . Special Melee Weapon . | . . . . Unidentified Prototypes 1 | . . . 1 Corrupted Parts 1 | . . . 1 System Corruption 1 | . . . 1 Parts Lost 30 | . 5 6 19 Power 7 | . 1 . 6 Propulsion 9 | . 2 4 3 Utility 1 | . . . 1 Weapon 13 | . 2 2 9 Highest Loss Streak 11 | . 4 6 11 To Critical Strikes . | . . . . Average Slot Usage (%) 71 | . 79 80 63 Engine 11 | . 9 11 12 Core 1 | . . . 1 Treads 12 | . . 34 . Leg 7 | . 27 . 8 Device 2 | . . 3 1 Storage 10 | . 14 11 9 Processor 2 | . . . 4 Energy Gun 12 | . 14 7 15 Ballistic Gun 5 | . 14 2 5 Ballistic Cannon 3 | . . 9 . Launcher 2 | . . . 4 Peak Build Rating 21 | 6 6 12 21 Average Rating 10 | 4 5 9 13 On Entrance 2 | . 6 1 4 Naked Turns . | . . . . Heaviest Build 35 | 12 12 18 35 Greatest Support 80 | 20 20 80 20 Greatest Overweight (x) 9 | 2 1 3 9 Average Overweight (x) . | . . . 2 Largest Inventory Capacity 10 | 8 8 8 10 Average Capacity 8 | 7 8 8 9 Most Carried 9 | 4 4 8 9 Average Carried 5 | 2 4 4 5 Final Capacity 10 | 8 8 8 10 Final Carried 8 | 4 4 8 1 Class Distribution -------------------- 45% | Mutant 32% | Scavenger-Gunner 10% | Gunner 10% | Scavenger-Mutant Dominant Class ---------------- Mutant | -10/Materials Mutant | -9/Materials Scavenger-Gunner | -8/Materials Resources | -11 -10 -9 -8 ----------- Run | Yrd Mat Mat Mat Matter Collected 709 | 216 . 216 277 Remotely . | . . . . Salvage Created 690 | . 15 230 445 Parts 43 | . 3 19 21 Haulers Intercepted . | . . . . Recyclers Shooed . | . . . . Parts Field Recycled . | . . . . Retrieved Matter . | . . . . Parts Self-Destructed . | . . . . Prevented . | . . . . Kills | -11 -10 -9 -8 ------- Run | Yrd Mat Mat Mat Combat Hostiles Destroyed 13 | . . 6 7 Guns 8 | . . 2 6 Cannons 4 | . . 4 . AOE 1 | . . . 1 Classes Destroyed 5 | . 1 2 2 Worker 1 | . . . 1 Operator 1 | . . . 1 Watcher 3 | . 1 1 1 Grunt 12 | . . 5 7 Sentry 1 | . . 1 . Best Kill Streak 4 | . 1 3 4 Combat Bots Only 3 | . . 3 2 Max Kills in Single Turn 2 | . 1 1 2 Gunslinging . | . . . . Exploded 1 | . . . 1 Melee . | . . . . Uniques/NPCs Destroyed . | . . . . Combat | -11 -10 -9 -8 -------- Run | Yrd Mat Mat Mat Hostile Shots Fired 379 | . 71 142 166 Missed 112 | . 18 45 49 Damage Taken 3615 | . 589 1076 1950 Core 849 | . 176 122 551 Absorbed by Shields . | . . . . Core Remaining (%) 66 | 100 29 69 . Volleys Fired 62 | . 4 29 29 Largest 3 | . 2 2 3 Hottest 145 | . 70 79 145 Shots Fired 145 | . 8 58 79 Gun 110 | . 8 29 73 Cannon 29 | . . 29 . Launcher 6 | . . . 6 Special . | . . . . Kinetic 54 | . 4 32 18 Thermal 85 | . 4 26 55 Explosive . | . . . . Electromagnetic 6 | . . . 6 Robot Hit Streak 10 | . 1 9 10 Robot Miss Streak 3 | . 3 3 1 Penetration Max . | . . . . Secondary Targets . | . . . . Shots Hit Robots 80 | . 2 27 51 Core Hits 40 | . 7 9 24 Critical Kills . | . . . . Critical Parts Destroyed . | . . . . Critical Strikes 2 | . 1 . 1 Burn 2 | . 1 . 1 Melee Attacks . | . . . . Impact . | . . . . Slashing . | . . . . Piercing . | . . . . Sneak Attacks . | . . . . Combat Hostiles . | . . . . Follow-up Attacks . | . . . . Damage Inflicted 1626 | . 104 536 986 Guns 881 | . 25 188 668 Cannons 348 | . . 348 . Explosions 303 | . . . 303 Melee . | . . . . Ramming 94 | . 79 . 15 Kinetic 602 | . . 377 225 Thermal 627 | . 25 159 443 Explosive . | . . . . Electromagnetic 303 | . . . 303 Impact . | . . . . Slashing . | . . . . Piercing . | . . . . Highest Corruption 1 | . . . 1 Average Corruption 1 | . . . 1 Corruption Purged . | . . . . Corruption Blocked . | . . . . Effects 1 | . . . 1 Misfires 1 | . . . 1 Overload Shots . | . . . . Overflow Damage 15 | . . . 15 Projectiles . | . . . . Explosions 15 | . . . 15 Melee . | . . . . Knockbacks 8 | . 1 6 1 Impact 2 | . 1 . 1 Kinetic 5 | . . 5 . Secondary 1 | . . 1 . Self-Inflicted Damage 94 | . 2 . 92 Shots 4 | . . . 4 Rammed 1 | . 1 . . Targets Rammed 42 | . 38 . 4 Kicked 41 | . 37 . 4 Crushed . | . . . . Highest Temperature 340 | . 18 207 340 Average Temperature 107 | . 10 69 138 Received Heat Transfer 1824 | . 318 462 1044 Effects 5 | . . . 5 Interference 5 | . . . 5 Siege Activations . | . . . . Robots Corrupted . | . . . . Combat Hostiles . | . . . . Parts Fried 1 | . . . 1 Impact Corruptions . | . . . . Robots Melted . | . . . . Combat Hostiles . | . . . . Parts Melted 2 | . 1 . 1 Heat Transferred 1616 | . 148 350 1118 Parts Sabotaged . | . . . . Parts Stolen . | . . . . Parts Stripped . | . . . . Power Chain Reactions 3 | . . . 3 Alert | -11 -10 -9 -8 ------- Run | Yrd Mat Mat Mat Peak Influence 195 | . 52 195 147 Initial . | . . . . Average 58 | . 32 75 58 Maximum Alert Level . | . . . . Low Security (%) 100 | 100 100 100 100 Level 1 . | . . . . Level 2 . | . . . . Level 3 . | . . . . Level 4 . | . . . . Level 5 . | . . . . High Security . | . . . . Max Security . | . . . . Squads Dispatched 7 | . 2 2 3 Investigation 2 | . 1 1 . Extermination . | . . . . Reinforcement 5 | . 1 1 3 Assault . | . . . . Garrison . | . . . . Intercept . | . . . . Searches Triggered . | . . . . Construction Impeded . | . . . . Haulers Reinforced . | . . . . Active Scanning Responses . | . . . . Cargo Convoy Interrupts . | . . . . Stealth | -11 -10 -9 -8 --------- Run | Yrd Mat Mat Mat Distress Signals 1 | . . 1 . Communications Jammed . | . . . . Distress Signals . | . . . . Times Spotted 50 | . 7 25 18 Peak Tracking Total 12 | . 4 12 7 Tactical Retreats 1 | . . . 1 Traps | -11 -10 -9 -8 ------- Run | Yrd Mat Mat Mat Traps Triggered 2 | . 1 1 . Indirectly . | . . . . Trap Hack Attempts . | . . . . Triggered . | . . . . Disarmed . | . . . . Reprogrammed . | . . . . Reused . | . . . . Traps Extracted . | . . . . Installed . | . . . . Triggered . | . . . . Machines | -11 -10 -9 -8 ---------- Run | Yrd Mat Mat Mat Machines Disabled 1 | . . 1 . Max in Single Turn 1 | . . 1 . Machines Repaired . | . . . . Machines Dismantled . | . . . . Machines Sabotaged . | . . . . Overloaded Fab Kills . | . . . . Hacking | -11 -10 -9 -8 --------- Run | Yrd Mat Mat Mat Machines Accessed . | . . . . Terminals . | . . . . Fabricators . | . . . . Repair Stations . | . . . . Recycling Units . | . . . . Scanalyzers . | . . . . Garrison Access . | . . . . Total Hacks . | . . . . Successful . | . . . . Failed . | . . . . Catastrophic . | . . . . Database Lockouts . | . . . . Manual . | . . . . Terminals . | . . . . Fabricators . | . . . . Repair Stations . | . . . . Recycling Units . | . . . . Scanalyzers . | . . . . Garrison Access . | . . . . Terminal Hacks . | . . . . Fabricator Hacks . | . . . . Repair Station Hacks . | . . . . Recycling Unit Hacks . | . . . . Scanalyzer . | . . . . Garrison Access Hacks . | . . . . Unauthorized Hacks . | . . . . Terminals . | . . . . Fabricators . | . . . . Repair Stations . | . . . . Recycling Units . | . . . . Scanalyzers . | . . . . Garrison Access . | . . . . Data Cores Recovered . | . . . . Used . | . . . . Hacking Detections . | . . . . Full Trace Events . | . . . . Feedback Events . | . . . . Feedback Blocked . | . . . . Robot Schematics Acquired . | . . . . Robots Built . | . . . . Authchips . | . . . . Time . | . . . . Total Robot Build Rating . | . . . . Part Schematics Acquired . | . . . . Parts Built . | . . . . Authchips . | . . . . Time . | . . . . Total Part Build Rating . | . . . . Parts Repaired . | . . . . Time . | . . . . Parts Recycled . | . . . . Recycled Matter . | . . . . Retrieved Matter . | . . . . Retrieved Components . | . . . . Parts Scanalyzed . | . . . . Part Schematics Acquired . | . . . . Parts Damaged . | . . . . Bothacking | -11 -10 -9 -8 ------------ Run | Yrd Mat Mat Mat Used RIF Installer . | . . . . Robots Hacked . | . . . . Non-combat . | . . . . Combat . | . . . . Robot Hacks Applied . | . . . . Relay Couplers Released . | . . . . Fabnet Peak Effective % . | . . . . Robots Rewired . | . . . . Allies Hacked . | . . . . Hacks Repelled . | . . . . Allies | -11 -10 -9 -8 -------- Run | Yrd Mat Mat Mat Total Allies . | . . . . Largest Group . | . . . . Highest-Rated Group . | . . . . Highest-Rated Ally . | . . . . Total Orders . | . . . . Ally Attacks . | . . . . Total Damage . | . . . . Kills . | . . . . Allies Corrupted . | . . . . Allies Melted . | . . . . Intel | -11 -10 -9 -8 ------- Run | Yrd Mat Mat Mat Robot Analysis Total . | . . . . Derelict Logs Recovered . | . . . . Drone Launches . | . . . . Drone Recoveries . | . . . . Exploration | -11 -10 -9 -8 ------------- Run | Yrd Mat Mat Mat Turns Passed 1316 | 58 150 453 655 Spaces Moved 502 | 43 78 185 196 Core 33 | 10 1 1 21 Treads 184 | . . 184 . Legs 285 | 33 77 . 175 Wheels . | . . . . Hover . | . . . . Flight . | . . . . Fastest Speed 50 | 50 100 160 190 Average Speed 182 | 106 119 160 246 Slowest Speed 500 | 150 120 200 500 Overloaded Moves . | . . . . Propulsion Burnouts . | . . . . Robots Hopped . | . . . . Cave-ins Triggered . | . . . . Exploration Rate (%) 16 | 5 18 22 19 Regions Visited 3 Branch Regions . Pre-discovered Areas . | . . . . Known Exits Taken . | . . . . Unknown Exits Taken 3 | 1 1 1 . Scrap Searched . | . . . . Spaces Dug . | . . . . Terrain Destroyed 12 | . . 2 10 Melee . | . . . . Projectile 2 | . . 2 . AOE 10 | . . . 10 Terrain Rammed . | . . . . Walls Destroyed . | . . . . Machines Disabled . | . . . . Actions | -11 -10 -9 -8 --------- Run | Yrd Mat Mat Mat Total 753 | 52 119 281 301 Wait 85 | . . 48 37 Move 500 | 42 78 184 196 Hop . | . . . . Pick Up 16 | 4 . 6 6 Fast Attach 16 | 6 . 4 6 Attach 18 | . . 4 14 Detach 1 | . . . 1 Swap 10 | . . 5 5 Drop 4 | . . 1 3 Fire 62 | . 4 29 29 Melee . | . . . . Ram . | . . . . Kick 41 | . 37 . 4 Crush . | . . . . Escape Stasis . | . . . . Rewire . | . . . . Trap . | . . . . Miscellaneous . | . . . . Route ------- -11/Scrapyard -10/Materials -9/Materials -8/Materials History --------- Turn | Location | Event 17 | -11/Scrapyard | Discovered new exit (range 14) 59 | -11/Scrapyard | Entered Materials 182 | -10/Materials | Discovered new exit (range 16) 190 | -10/Materials | Core integrity fell below 50% 209 | -10/Materials | Entered another Materials area 209 | -9/Materials | Evolved 2 slots: Propulsion x2 239 | -9/Materials | Lost 4 parts (2n2w) 310 | -9/Materials | Build established: Mutant 642 | -9/Materials | Discovered new exit (range 15) 662 | -9/Materials | Entered another Materials area 662 | -8/Materials | Evolved 2 slots: Power x1, Weapon x1 693 | -8/Materials | Lost 6 parts (4n2w) 1092 | -8/Materials | Lost 6 parts (2p1n3w) 1290 | -8/Materials | Core integrity fell below 50% 1315 | -8/Materials | Core integrity fell below 20% 1317 | -8/Materials | Destroyed by Y-45 Defender with Heavy Assault Rifle Last Messages --------------- 01247_ Kicked G-50 Soldier out of the way. 01247_ G-50 Soldier knocked back. 01248_ Critical hit (Burn: +37). 01249_ Kicked G-50 Soldier. 01250_ Critical hit (Burn: +37). 01250_ Aluminum Leg destroyed. 01252_ Lgt. Nuclear Core destroyed. 01257_ Sml. Laser destroyed. 01259_ Aluminum Leg destroyed. 01260_ System corrupted: FCS attempts to trigger Hvy. Laser. 01260_ System corrupted: Hvy. Laser misfires. 01261_ Lgt. Angular Momentum Engine destroyed. 01268_ Critical hit (Burn: +37). 01287_ Hvy. Laser destroyed. 01288_ G-47 Trooper suffers critical hit (Burn). 01292_ G-47 Trooper destroyed. 01296_ Adv. EMP Blaster destroyed. 01300_ Ion Engine destroyed. 01310_ Adv. EMP Blaster destroyed. Map ----- +----------------------------------------------------+ | | | | | | | | | | | | | | | | | | | | | | | | | | | | | | | | | | | | | | | | | | | | | | | | | ??????????????????#########??????????????????????? | | ??????????????????# ! @#??????????????????????? | | ??????????????????# #??????????????????????? | | ??????????????????# #??????????????????????? | | ??#######?????????# []] #??????????????????????? | | ??# ########### []] #??????????????????????? | | ### # [] #??????????????????????? | | % # #??????????????????????? | | ### # g= #??????????????????????? | | #?#% ####### # Yg #??????????????????????? | | #?## ######## ##Y#######?????????????????????? | | #?##=!=# # m #???????????????? | | ####% [+ # #???????????????? | | + [ =# # #???????????????? | | #### # ######/####### #???????????????? | | #?## #? #???? ????????###???????????????? | | #?## # #???? """ ?????????????????????????? | | #?## ########???? """ ????????????????????????? | | ???# !##??????? ""? = ???????????????????????? | | ???# ! #??????? ?? #??????????????????????? | | #??# !#??????? ?????????????????????????????? | | # !#??????? ?????????????????????????????? | | + !#??????? ?????????????????????????????? | | # !##??????? ?????????????????????????????? | | ??# ####??????????????????????????????????????? | | ???# #?????????????????????????????????????????? | +----------------------------------------------------+ Best States ------------- Heat Dissipation 41 Energy Generation 27 Energy Capacity 300 Matter Stores 300 Matter Capacity 300 Sight Range 16 Terrain Scan Density 10 Evasion (%) 55 Targeting Accuracy 8 Recoil Reduction 4 Item Schematics ----------------- None Robot Schematics ------------------ None Fabricated ------------ Nothing Alien Tech Used ----------------- None Achievements -------------- None Challenges ------------ None Game ------ Seed FactoryLightningMonowheel Manual? 0 Play Time 00:13:33 Cumulative 7.4 hours Start 2024.12.06 @ 22:17:30 End 2024.12.06 @ 22:26:54 Sessions 1 Manual Loads 0 Difficulty Rogue Special Mode None Game No. 22 Rogue 22 Adventurer 0 Explorer 0 Win Type - Total 0 Types 0/0/0/0/0/0/0/0/0 Lore% 1 Gallery% 11 Achievement% 7 Wizard Run 0 Options --------- Layout 1 ASCII 0 Keyboard 0 Movement Numpad Keybinds 0 Fullscreen 0 Font 28/SmallcapsGlow Map View 50x35 Zoom Use 0% Tactical HUD 1 Map Filters NONE Filters NONE Steam X RUN: 3954de04-2811-4718-83cf-ba58e2359d11